Cogmind - Beta 10.2 @@@ ROGUE MODE // 2020.10.31 @ 15:57:36 Player: Winter Result: Destroyed by Y-45 Defender with Heavy Assault Rifle Performance ------------- Evolutions (1) 500 Regions Visited (3) 600 Robots Destroyed (25) 125 Value Destroyed (628) 628 Prototype IDs (0) 0 Alien Tech Used (0) 0 Bonus (0) 0 TOTAL SCORE: 1853 Bonus ------- None Cogmind --------- Core Integrity 0/400 Matter 225/300 Energy 400/400 System Corruption 0% Temperature Cool (15) Movement Core (350) Ox6 Location -9/Materials Parts ------- > --- POWER (1) -------- (None) > --- PROPULSION (3) --- (None) > --- UTILITY (3) ------ Large Storage Unit Large Battery > --- WEAPON (2) ------- (None) > --- INVENTORY (10) --- Light Ion Engine VTOL Module VTOL Module VTOL Module Improved Heat Sink Large Storage Unit Sensor Array Signal Interpreter Field Recycling Unit (0) Peak State ------------ > --- POWER ------------ Light Ion Engine > --- PROPULSION ------- Aluminum Leg Aluminum Leg > --- UTILITY ---------- Improved Heat Sink Large Storage Unit Large Battery > --- WEAPON ----------- EM Pulse Gun Rocket Launcher > --- INVENTORY -------- Ion Engine VTOL Module VTOL Module VTOL Module Large Storage Unit Sensor Array Signal Interpreter Field Recycling Unit Small Laser [Rating: 12] Favorites ----------- Power Light Nuclear Core Engine Light Ion Engine Power Core Light Nuclear Core Propulsion Aluminum Leg Leg Aluminum Leg Utility Large Battery Device Improved Heat Sink Storage Large Battery Protection Light Armor Plating Weapon EM Pulse Gun Energy Gun EM Pulse Gun Ballistic Gun Shotgun Ballistic Cannon Light Cannon Launcher Rocket Launcher Build | -11 -10 -10 -9 ------- Run | Scr Mat Min Mat Slots Evolved 2 | . . . 2 Power . | . . . . Propulsion 1 | . . . 1 Utility 1 | . . . 1 Weapon . | . . . . Parts Attached 26 | 5 14 1 6 Power 4 | 1 2 . 1 Engine 3 | 1 1 . 1 Core 1 | . 1 . . Reactor . | . . . . Propulsion 5 | 2 3 . . Treads . | . . . . Leg 5 | 2 3 . . Wheel . | . . . . Hover . | . . . . Flight . | . . . . Utility 7 | . 4 . 3 Device 1 | . . . 1 Storage 3 | . 3 . . Processor . | . . . . Hackware . | . . . . Protection 3 | . 1 . 2 Artifact . | . . . . Weapon 10 | 2 5 1 2 Energy Gun 7 | 2 4 . 1 Energy Cannon . | . . . . Ballistic Gun 1 | . . . 1 Ballistic Cannon 1 | . 1 . . Launcher 1 | . . 1 . Special Weapon . | . . . . Impact Weapon . | . . . . Slashing Weapon . | . . . . Piercing Weapon . | . . . . Special Melee Weapon . | . . . . Unidentified Prototypes . | . . . . Parts Lost 16 | . 7 . 9 Power 3 | . 1 . 2 Propulsion 3 | . 1 . 2 Utility 2 | . 1 . 1 Weapon 8 | . 4 . 4 Highest Loss Streak 8 | . 3 . 8 Average Slot Usage (%) 89 | . 89 100 79 Engine 6 | . 3 14 10 Core 4 | . 6 . . Leg 25 | . 27 28 18 Storage 25 | . 25 28 22 Protection 2 | . . . 8 Energy Gun 13 | . 12 21 9 Ballistic Cannon 7 | . 11 . . Launcher 2 | . . 6 9 Naked Turns . | . . . . Heaviest Build 33 | 7 27 28 33 Greatest Support 20 | 20 20 20 20 Greatest Overweight (x) 8 | . 1 1 8 Average Overweight (x) . | . . 1 1 Largest Inventory Capacity 10 | 4 10 10 10 Average Capacity 8 | 4 7 10 10 Most Carried 10 | 4 10 10 10 Average Carried 7 | 2 6 9 9 Final Capacity 10 | 4 10 10 10 Final Carried 10 | 3 10 10 9 Class Distribution -------------------- 89% | Mutant 10% | Scavenger-Mutant Dominant Class ---------------- Mutant | -10/Materials Scavenger-Mutant | -10/Mines Mutant | -9/Materials Resources | -11 -10 -10 -9 ----------- Run | Scr Mat Min Mat Matter Collected 612 | 36 527 10 39 Remotely . | . . . . Salvage Created 869 | . 789 . 80 Parts 53 | . 49 . 4 Haulers Intercepted . | . . . . Recyclers Shooed 1 | . 1 . . Parts Field Recycled . | . . . . Retrieved Matter . | . . . . Parts Self-Destructed . | . . . . Prevented . | . . . . Kills | -11 -10 -10 -9 ------- Run | Scr Mat Min Mat Combat Hostiles Destroyed 16 | . 14 . 2 Guns 6 | . 5 . 1 Cannons 8 | . 8 . . AOE 2 | . 1 . 1 Classes Destroyed 7 | . 6 . 1 Builder 2 | . 1 . 1 Recycler 2 | . 2 . . Mechanic 1 | . 1 . . Watcher 4 | . 3 . 1 Swarmer 3 | . 3 . . Grunt 12 | . 11 . 1 Sentry 1 | . . . 1 Best Kill Streak 8 | . 8 . 1 Combat Bots Only 5 | . 5 . 1 Max Kills in Single Turn 1 | . 1 . 1 Gunslinging . | . . . . Exploded 1 | . 1 . 1 Melee . | . . . . Uniques/NPCs Destroyed . | . . . . Combat | -11 -10 -10 -9 -------- Run | Scr Mat Min Mat Damage Taken 1908 | . 760 . 1148 Core 590 | . 185 . 405 Absorbed by Shields . | . . . . Core Remaining (%) 63 | 100 . 26 . Volleys Fired 99 | . 70 . 29 Largest 2 | . 2 . 1 Hottest 80 | . 80 . 40 Shots Fired 127 | . 98 . 29 Gun 68 | . 46 . 22 Cannon 52 | . 52 . . Launcher 7 | . . . 7 Special . | . . . . Kinetic 58 | . 52 . 6 Thermal 33 | . 30 . 3 Explosive 7 | . . . 7 Electromagnetic 29 | . 16 . 13 Robot Hit Streak 14 | . 11 . 14 Robot Miss Streak 4 | . 4 . 4 Penetration Max . | . . . . Secondary Targets . | . . . . Shots Hit Robots 81 | . 58 . 23 Core Hits 36 | . 27 . 9 Critical Hits 1 | . 1 . . Critical Kills 1 | . 1 . . Critical Parts Destroyed . | . . . . Melee Attacks . | . . . . Impact . | . . . . Slashing . | . . . . Piercing . | . . . . Sneak Attacks . | . . . . Combat Hostiles . | . . . . Follow-up Attacks . | . . . . Damage Inflicted 1354 | . 928 . 426 Guns 630 | . 364 . 266 Cannons 540 | . 540 . . Explosions 180 | . 24 . 156 Melee . | . . . . Ramming 4 | . . . 4 Kinetic 655 | . 540 . 115 Thermal 214 | . 191 . 23 Explosive 156 | . . . 156 Electromagnetic 325 | . 197 . 128 Impact . | . . . . Slashing . | . . . . Piercing . | . . . . Highest Corruption . | . . . . Average Corruption . | . . . . Corruption Purged . | . . . . Overload Shots . | . . . . Overflow Damage 18 | . . . 18 Projectiles . | . . . . Explosions 18 | . . . 18 Melee . | . . . . Knockbacks 10 | . 10 . . Impact . | . . . . Kinetic 9 | . 9 . . Secondary 1 | . 1 . . Self-Inflicted Damage 29 | . 7 . 22 Shots 2 | . 1 . 1 Rammed 1 | . . . 1 Targets Rammed 1 | . . . 1 Kicked . | . . . . Crushed . | . . . . Highest Temperature 329 | . 329 . 33 Average Temperature 76 | . 92 . 12 Received Heat Transfer 882 | . 348 . 534 Effects 1 | . 1 . . Interference 1 | . 1 . . Siege Activations . | . . . . Robots Corrupted . | . . . . Combat Hostiles . | . . . . Parts Fried . | . . . . Impact Corruptions . | . . . . Robots Melted . | . . . . Combat Hostiles . | . . . . Parts Melted . | . . . . Heat Transferred 475 | . 425 . 50 Parts Sabotaged . | . . . . Parts Stolen . | . . . . Parts Stripped . | . . . . Power Chain Reactions 1 | . 1 . . Missiles Intercepted . | . . . . Alert | -11 -10 -10 -9 ------- Run | Scr Mat Min Mat Peak Influence 291 | . 291 17 98 Initial 17 | . . 17 6 Average 75 | . 97 17 51 Maximum Alert Level 1 | . 1 . . Low Security (%) 95 | 100 93 100 100 Level 1 4 | . 6 . . Level 2 . | . . . . Level 3 . | . . . . Level 4 . | . . . . Level 5 . | . . . . High Security . | . . . . Max Security . | . . . . Squads Dispatched 6 | . 3 . 3 Investigation 3 | . 2 . 1 Extermination . | . . . . Reinforcement 3 | . 1 . 2 Assault . | . . . . Garrison . | . . . . Intercept . | . . . . Construction Impeded 1 | . . . 1 Haulers Reinforced . | . . . . Stealth | -11 -10 -10 -9 --------- Run | Scr Mat Min Mat Distress Signals 4 | . 3 . 1 Communications Jammed . | . . . . Distress Signals . | . . . . Times Spotted 36 | . 21 . 15 Peak Tracking Total 10 | . 10 . 9 Tactical Retreats . | . . . . Traps | -11 -10 -10 -9 ------- Run | Scr Mat Min Mat Traps Triggered 3 | . 3 . . Indirectly . | . . . . Trap Hack Attempts . | . . . . Triggered . | . . . . Disarmed . | . . . . Reprogrammed . | . . . . Reused . | . . . . Traps Extracted . | . . . . Installed . | . . . . Triggered . | . . . . Machines | -11 -10 -10 -9 ---------- Run | Scr Mat Min Mat Machines Disabled 2 | . . . 2 Max in Single Turn 1 | . . . 1 Machines Sabotaged . | . . . . Garrisons Compromised . | . . . . Overloaded Fab Kills . | . . . . Fab Network Shutdowns . | . . . . Hacking | -11 -10 -10 -9 --------- Run | Scr Mat Min Mat Machines Accessed 4 | . 2 . 2 Terminals 4 | . 2 . 2 Fabricators . | . . . . Repair Stations . | . . . . Recycling Units . | . . . . Scanalyzers . | . . . . Garrison Access . | . . . . Total Hacks 7 | . 3 . 4 Successful 1 | . 1 . . Failed 6 | . 2 . 4 Catastrophic 2 | . . . 2 Database Lockouts . | . . . . Manual 6 | . 2 . 4 Terminals 7 | . 3 . 4 Fabricators . | . . . . Repair Stations . | . . . . Recycling Units . | . . . . Scanalyzers . | . . . . Garrison Access . | . . . . Terminal Hacks 1 | . 1 . . Level Access Points 1 | . 1 . . Fabricator Hacks . | . . . . Repair Station Hacks . | . . . . Recycling Unit Hacks . | . . . . Scanalyzer . | . . . . Garrison Access Hacks . | . . . . Unauthorized Hacks . | . . . . Terminals . | . . . . Fabricators . | . . . . Repair Stations . | . . . . Recycling Units . | . . . . Scanalyzers . | . . . . Garrison Access . | . . . . Data Cores Recovered . | . . . . Used . | . . . . Hacking Detections 4 | . 2 . 2 Full Trace Events 1 | . . . 1 Feedback Events . | . . . . Feedback Blocked . | . . . . Robot Schematics Acquired . | . . . . Robots Built . | . . . . Matter . | . . . . Time . | . . . . Total Robot Build Rating . | . . . . Part Schematics Acquired . | . . . . Parts Built . | . . . . Matter . | . . . . Time . | . . . . Total Part Build Rating . | . . . . Parts Repaired . | . . . . Time . | . . . . Parts Recycled . | . . . . Recycled Matter . | . . . . Retrieved Matter . | . . . . Retrieved Components . | . . . . Parts Scanalyzed . | . . . . Part Schematics Acquired . | . . . . Parts Damaged . | . . . . Bothacking | -11 -10 -10 -9 ------------ Run | Scr Mat Min Mat Used RIF Installer . | . . . . Robots Hacked . | . . . . Non-combat . | . . . . Combat . | . . . . Robot Hacks Applied . | . . . . Relay Couplers Released . | . . . . Robots Rewired . | . . . . Allies Hacked . | . . . . Hacks Repelled . | . . . . Allies | -11 -10 -10 -9 -------- Run | Scr Mat Min Mat Total Allies . | . . . . Largest Group . | . . . . Highest-Rated Group . | . . . . Highest-Rated Ally . | . . . . Total Orders . | . . . . Ally Attacks . | . . . . Total Damage . | . . . . Kills . | . . . . Allies Corrupted . | . . . . Allies Melted . | . . . . Intel | -11 -10 -10 -9 ------- Run | Scr Mat Min Mat Robot Analysis Total . | . . . . Derelict Logs Recovered . | . . . . Drone Launches . | . . . . Drone Recoveries . | . . . . Exploration | -11 -10 -10 -9 ------------- Run | Scr Mat Min Mat Turns Passed 1750 | 45 1154 237 314 Spaces Moved 1068 | 35 727 156 150 Core 20 | 12 . . 8 Treads . | . . . . Legs 1048 | 23 727 156 142 Wheels . | . . . . Hover . | . . . . Flight . | . . . . Fastest Speed 50 | 50 120 150 150 Average Speed 137 | 96 131 150 162 Slowest Speed 450 | 120 150 150 450 Overloaded Moves . | . . . . Propulsion Burnouts . | . . . . Robots Hopped . | . . . . Cave-ins Triggered . | . . . . Exploration Rate (%) 40 | 3 88 46 23 Regions Visited 3 Branch Regions 1 Pre-discovered Areas . | . . . . Known Exits Taken 1 | . . 1 . Unknown Exits Taken 2 | 1 1 . . Scrap Searched 1 | . . 1 . Spaces Dug . | . . . . Terrain Destroyed 58 | . 3 . 55 Melee . | . . . . Projectile . | . . . . AOE 58 | . 3 . 55 Terrain Rammed . | . . . . Walls Destroyed . | . . . . Machines Disabled . | . . . . Actions | -11 -10 -10 -9 --------- Run | Scr Mat Min Mat Total 1230 | 46 830 160 194 Wait . | . . . . Move 1065 | 34 726 155 150 Hop . | . . . . Pick Up 30 | 7 16 2 5 Fast Attach 3 | 1 2 . . Attach 19 | 4 9 1 5 Detach . | . . . . Swap 4 | . 3 . 1 Drop 9 | . 4 2 3 Fire 99 | . 70 . 29 Melee . | . . . . Ram . | . . . . Kick 1 | . . . 1 Crush . | . . . . Escape Stasis . | . . . . Rewire . | . . . . Trap . | . . . . Miscellaneous . | . . . . Route ------- -11/Scrapyard -10/Materials (discovered 4 exits: *Mat x3 / [*Min]) -10/Mines -9/Materials History --------- Turn | Location | Event 6 | -11/Scrapyard | Discovered new exit (range 16) 46 | -11/Scrapyard | Entered Materials 214 | -10/Materials | Lost 3 parts (1u2w) 258 | -10/Materials | Identified exit to Materials 306 | -10/Materials | Build established: Mutant 372 | -10/Materials | Core integrity fell below 50% 890 | -10/Materials | Discovered new exit (range 16) 1200 | -10/Materials | Entered Mines 1288 | -10/Mines | Received a Rocket Launcher from a helpful Derelict 1404 | -10/Mines | Discovered exit to Materials (range 8) 1437 | -10/Mines | Entered Materials 1437 | -9/Materials | Evolved 2 slots: Propulsion x1, Utility x1 1736 | -9/Materials | Core integrity fell below 50% 1749 | -9/Materials | Core integrity fell below 20% 1751 | -9/Materials | Destroyed by Y-45 Defender with Heavy Assault Rifle Last Messages --------------- Connecting with Terminal... ALERT: Suspicious activity at Terminal M011. Dispatching Investigation squad. K-01 Serf collects debris. W-16 Scout sends out distress signal. K-01 Serf collects debris. EM Pulse Gun destroyed. Acquired Shotgun. G-34 Mercenary destroyed. Rocket Launcher destroyed. Aluminum Leg destroyed. Sml. Laser destroyed. R-06 Scavenger collects Sml. Laser. Lgt. Armor Plating destroyed. R-06 Scavenger collects Aluminum Leg. Aluminum Leg destroyed. G-34 Mercenary destroyed. Shotgun destroyed. Ion Engine destroyed. ALERT: Hostiles spotted, dispatching reinforcements to Terminal M008. Map ----- +----------------------------------------------------+ | ?????????????????????????????????????????????????? | | ?????????????????????????????????????????????????? | | ?????????????????????????????????????????????????? | | ???????????????????????? ??????????????????????? | | ???????????????????????# ##????????????????????? | | ??????????????????????? #????????????????????? | | ??????????????????????? #????????????????????? | | ??????????????????????? #????????????????????? | | ??????????????????????? #????????????????????? | | ??????????????????????? #????????????????????? | | ?????????????########### #?????????????????????? | | ?????????????# # #?????????????????????? | | ?????????????# + #?????????????????????? | | ?????????????# % # #?????????????????????? | | ?????????????# %[# g #?????????????????????? | | ?????????????# [ # #??? #?? ?????????????? | | ?????????????# #w # #?? #????????????? | | ?????????????# # + # #????????????? | | ?????????????# ! +% #????? #????????????? | | ?????????????###########ggY#????? #????????????? | | ???????????????????????# #????? #????????????? | | ??????????????????????## ###### #????????????? | | ??????????????????????#T t #????????????? | | ??????????????????????## #????????????? | | ???????????????????????# ##????????????? | | ????????????????????#####@######## #?????????????? | | ????????????????????# #### ###???????????? | | ????????????????????# """"""" ## #???????????? | | ????????????????????# """"""" ## #???????????? | | ????????????????????# """"""" + T +???????????? | | ????????????????????# """"""" ## #???????????? | | ????????????????????# """"""" ## #???????????? | | ???????????????????????? ####+########??????? | | ??????????????????????? # #??????? | | ??????????????????????##/###### #??????? | | ???????????????????????# ?????# #??????? | | ???????????????????????#??????# #??????? | | ???????????????????????# ?????# #??????? | | ???????????????????????# ?##### #??????? | | ???????????????????????# ## # #??????? | | ???????????????????????# ###########??????? | | ???????????????????????# # # #???????????? | | ???????????????????????# # "" #???????????? | | ???????????????????????# # """ #####???????? | | ???????????????????????# """ # ???????? | | ???????????????????????# # ????????? | | ???????????????????????# # """ # ???????? | | ???????????????????????#?## ! """ # ""???????? | | ??????????????????????????# ! """ # "????????? | | ??????????????????????????+ !!!# # "????????? | +----------------------------------------------------+ Best States ------------- Heat Dissipation 42 Energy Generation 14 Energy Capacity 550 Matter Stores 300 Matter Capacity 300 Sight Range 16 Terrain Scan Density 10 Armor Coverage 150 Evasion (%) 50 Item Schematics ----------------- None Robot Schematics ------------------ None Fabricated ------------ Nothing Alien Tech Used ----------------- None Achievements -------------- None Challenges ------------ None Game ------ Seed Winter Manual? 1 Play Time 00:17:36 Cumulative 5.2 hours Start 2020.10.31 @ 15:40:46 End 2020.10.31 @ 15:57:36 Sessions 1 Manual Loads 0 Difficulty Rogue Special Mode None Game No. 13 Rogue 13 Adventurer 0 Explorer 0 Win Type - Total 0 Types 0/0/0/0/0/0/0/0/0 Lore% 7 Gallery% 11 Achievement% 8 Wizard Run 0 Options --------- ASCII 0 Keyboard 0 Movement Mouse Keybinds 0 Fullscreen 1 Font 18/SmallcapsGlow Map View 76x50 Tactical HUD 0 Map Filters NONE Filters NONE Steam 1 RUN: a5c4594d-01bb-43d9-8ff3-310a4f9ca54a